{"text_format":"1","workbook":"xlsx","n_sheets":7,"sheets":["Data Table","Data with Scroll Bar (Vertical)","Data Table (for Horizontal)","ActiveX Control","Horizontal Scroll Bar","scroll bars","diy"],"not_rendered":{"charts":0,"images":1,"macros":1,"external_links":0,"defined_names":0,"comments":0,"pivot_tables":0},"unopened":[],"bounds":{"document_bytes":16777216,"sheet_cells":100000,"rows_first":2000,"rows_last":500,"rows_between":2000,"halvings":0,"cell_chars":16384,"cell_head_chars":4096},"cells_cut":0,"cells_raw":0,"read":"whole","date_system":"1900"}

{"sheet":"Data Table","index":0,"n_rows":34,"n_cols":8,"rows_kept":34,"cut":false,"hidden":false,"merged":[[1,1,1,4]]}
[null,null,null,null,null,null,null,9]
[null,"Company Profile List"]
[]
[null,"Company Owner","Product","Number of Employee","Yearly Revenue (M)"]
[null,"Laura","Car",100,10]
[null,"James","Car",120,20]
[null,"Jane","Computer",95,12]
[null,"Peter","Garments",500,10]
[null,"Lara","Garments",700,15]
[null,"William","Oil",250,5]
[null,"Nicolas","Gas",300,20]
[null,"Haddin","Car",110,22]
[null,"Peterson","Chemicals",350,25]
[null,"Rob","Weapons",300,10]
[null,"Flintoff","Weapons",100,10]
[null,"Adam","Weapons",120,20]
[null,"Kiera","Chemicals",95,12]
[null,"Jason","Chemicals",500,10]
[null,"Ashish","Car",250,22]
[null,"Hiran","Car",300,25]
[null,"Dushan","Car",110,10]
[null,"Joy","Computer",350,10]
[null,"Kane","Garments",700,10]
[null,"Beer","Garments",650,15]
[null,"Mike","Weapons",100,10]
[null,"Gray","Weapons",120,10]
[null,"Tison","Chemicals",95,20]
[null,"Erikson","Chemicals",500,12]
[null,"Nicles","Car",350,10]
[null,"Brek","Car",700,10]
[null,"Drek","Computer",650,15]
[null,"Laren","Oil",300,20]
[null,"Jovan","Gas",110,22]
[null,"Flintar","Car",350,25]

{"sheet":"Data with Scroll Bar (Vertical)","index":1,"n_rows":14,"n_cols":5,"rows_kept":14,"cut":false,"hidden":false,"merged":[[1,1,1,4]]}
[]
[null,"Company Profile List"]
[]
[null,"Company Owner","Product","Number of Employee","Yearly Revenue (M)"]
[null,{"$f":"INDEX('Data Table'!$B$5:$E$34,'Data Table'!$H$1+ROWS('Data Table'!$B$5:B5),COLUMNS('Data Table'!$B$5:B5))","v":"Rob"},{"$f":"INDEX('Data Table'!$B$5:$E$34,'Data Table'!$H$1+ROWS('Data Table'!$B$5:C5),COLUMNS('Data Table'!$B$5:C5))","v":"Weapons"},{"$f":"INDEX('Data Table'!$B$5:$E$34,'Data Table'!$H$1+ROWS('Data Table'!$B$5:D5),COLUMNS('Data Table'!$B$5:D5))","v":300},{"$f":"INDEX('Data Table'!$B$5:$E$34,'Data Table'!$H$1+ROWS('Data Table'!$B$5:E5),COLUMNS('Data Table'!$B$5:E5))","v":10}]
[null,{"$f":"INDEX('Data Table'!$B$5:$E$34,'Data Table'!$H$1+ROWS('Data Table'!$B$5:B6),COLUMNS('Data Table'!$B$5:B6))","v":"Flintoff"},{"$f":"INDEX('Data Table'!$B$5:$E$34,'Data Table'!$H$1+ROWS('Data Table'!$B$5:C6),COLUMNS('Data Table'!$B$5:C6))","v":"Weapons"},{"$f":"INDEX('Data Table'!$B$5:$E$34,'Data Table'!$H$1+ROWS('Data Table'!$B$5:D6),COLUMNS('Data Table'!$B$5:D6))","v":100},{"$f":"INDEX('Data Table'!$B$5:$E$34,'Data Table'!$H$1+ROWS('Data Table'!$B$5:E6),COLUMNS('Data Table'!$B$5:E6))","v":10}]
[null,{"$f":"INDEX('Data Table'!$B$5:$E$34,'Data Table'!$H$1+ROWS('Data Table'!$B$5:B7),COLUMNS('Data Table'!$B$5:B7))","v":"Adam"},{"$f":"INDEX('Data Table'!$B$5:$E$34,'Data Table'!$H$1+ROWS('Data Table'!$B$5:C7),COLUMNS('Data Table'!$B$5:C7))","v":"Weapons"},{"$f":"INDEX('Data Table'!$B$5:$E$34,'Data Table'!$H$1+ROWS('Data Table'!$B$5:D7),COLUMNS('Data Table'!$B$5:D7))","v":120},{"$f":"INDEX('Data Table'!$B$5:$E$34,'Data Table'!$H$1+ROWS('Data Table'!$B$5:E7),COLUMNS('Data Table'!$B$5:E7))","v":20}]
[null,{"$f":"INDEX('Data Table'!$B$5:$E$34,'Data Table'!$H$1+ROWS('Data Table'!$B$5:B8),COLUMNS('Data Table'!$B$5:B8))","v":"Kiera"},{"$f":"INDEX('Data Table'!$B$5:$E$34,'Data Table'!$H$1+ROWS('Data Table'!$B$5:C8),COLUMNS('Data Table'!$B$5:C8))","v":"Chemicals"},{"$f":"INDEX('Data Table'!$B$5:$E$34,'Data Table'!$H$1+ROWS('Data Table'!$B$5:D8),COLUMNS('Data Table'!$B$5:D8))","v":95},{"$f":"INDEX('Data Table'!$B$5:$E$34,'Data Table'!$H$1+ROWS('Data Table'!$B$5:E8),COLUMNS('Data Table'!$B$5:E8))","v":12}]
[null,{"$f":"INDEX('Data Table'!$B$5:$E$34,'Data Table'!$H$1+ROWS('Data Table'!$B$5:B9),COLUMNS('Data Table'!$B$5:B9))","v":"Jason"},{"$f":"INDEX('Data Table'!$B$5:$E$34,'Data Table'!$H$1+ROWS('Data Table'!$B$5:C9),COLUMNS('Data Table'!$B$5:C9))","v":"Chemicals"},{"$f":"INDEX('Data Table'!$B$5:$E$34,'Data Table'!$H$1+ROWS('Data Table'!$B$5:D9),COLUMNS('Data Table'!$B$5:D9))","v":500},{"$f":"INDEX('Data Table'!$B$5:$E$34,'Data Table'!$H$1+ROWS('Data Table'!$B$5:E9),COLUMNS('Data Table'!$B$5:E9))","v":10}]
[null,{"$f":"INDEX('Data Table'!$B$5:$E$34,'Data Table'!$H$1+ROWS('Data Table'!$B$5:B10),COLUMNS('Data Table'!$B$5:B10))","v":"Ashish"},{"$f":"INDEX('Data Table'!$B$5:$E$34,'Data Table'!$H$1+ROWS('Data Table'!$B$5:C10),COLUMNS('Data Table'!$B$5:C10))","v":"Car"},{"$f":"INDEX('Data Table'!$B$5:$E$34,'Data Table'!$H$1+ROWS('Data Table'!$B$5:D10),COLUMNS('Data Table'!$B$5:D10))","v":250},{"$f":"INDEX('Data Table'!$B$5:$E$34,'Data Table'!$H$1+ROWS('Data Table'!$B$5:E10),COLUMNS('Data Table'!$B$5:E10))","v":22}]
[null,{"$f":"INDEX('Data Table'!$B$5:$E$34,'Data Table'!$H$1+ROWS('Data Table'!$B$5:B11),COLUMNS('Data Table'!$B$5:B11))","v":"Hiran"},{"$f":"INDEX('Data Table'!$B$5:$E$34,'Data Table'!$H$1+ROWS('Data Table'!$B$5:C11),COLUMNS('Data Table'!$B$5:C11))","v":"Car"},{"$f":"INDEX('Data Table'!$B$5:$E$34,'Data Table'!$H$1+ROWS('Data Table'!$B$5:D11),COLUMNS('Data Table'!$B$5:D11))","v":300},{"$f":"INDEX('Data Table'!$B$5:$E$34,'Data Table'!$H$1+ROWS('Data Table'!$B$5:E11),COLUMNS('Data Table'!$B$5:E11))","v":25}]
[null,{"$f":"INDEX('Data Table'!$B$5:$E$34,'Data Table'!$H$1+ROWS('Data Table'!$B$5:B12),COLUMNS('Data Table'!$B$5:B12))","v":"Dushan"},{"$f":"INDEX('Data Table'!$B$5:$E$34,'Data Table'!$H$1+ROWS('Data Table'!$B$5:C12),COLUMNS('Data Table'!$B$5:C12))","v":"Car"},{"$f":"INDEX('Data Table'!$B$5:$E$34,'Data Table'!$H$1+ROWS('Data Table'!$B$5:D12),COLUMNS('Data Table'!$B$5:D12))","v":110},{"$f":"INDEX('Data Table'!$B$5:$E$34,'Data Table'!$H$1+ROWS('Data Table'!$B$5:E12),COLUMNS('Data Table'!$B$5:E12))","v":10}]
[null,{"$f":"INDEX('Data Table'!$B$5:$E$34,'Data Table'!$H$1+ROWS('Data Table'!$B$5:B13),COLUMNS('Data Table'!$B$5:B13))","v":"Joy"},{"$f":"INDEX('Data Table'!$B$5:$E$34,'Data Table'!$H$1+ROWS('Data Table'!$B$5:C13),COLUMNS('Data Table'!$B$5:C13))","v":"Computer"},{"$f":"INDEX('Data Table'!$B$5:$E$34,'Data Table'!$H$1+ROWS('Data Table'!$B$5:D13),COLUMNS('Data Table'!$B$5:D13))","v":350},{"$f":"INDEX('Data Table'!$B$5:$E$34,'Data Table'!$H$1+ROWS('Data Table'!$B$5:E13),COLUMNS('Data Table'!$B$5:E13))","v":10}]
[null,{"$f":"INDEX('Data Table'!$B$5:$E$34,'Data Table'!$H$1+ROWS('Data Table'!$B$5:B14),COLUMNS('Data Table'!$B$5:B14))","v":"Kane"},{"$f":"INDEX('Data Table'!$B$5:$E$34,'Data Table'!$H$1+ROWS('Data Table'!$B$5:C14),COLUMNS('Data Table'!$B$5:C14))","v":"Garments"},{"$f":"INDEX('Data Table'!$B$5:$E$34,'Data Table'!$H$1+ROWS('Data Table'!$B$5:D14),COLUMNS('Data Table'!$B$5:D14))","v":700},{"$f":"INDEX('Data Table'!$B$5:$E$34,'Data Table'!$H$1+ROWS('Data Table'!$B$5:E14),COLUMNS('Data Table'!$B$5:E14))","v":10}]

{"sheet":"Data Table (for Horizontal)","index":2,"n_rows":14,"n_cols":12,"rows_kept":14,"cut":false,"hidden":false,"merged":[[1,1,1,9]]}
[]
[null,"Employee List & Information"]
[null,null,null,null,null,null,null,null,null,null,null,4]
[null,"ID","First Name","Last Name","Gender","Age","Address","Mobile","Working Period (Years)","Email"]
[null,1,"Kaspar","Maulkin","Male",37,"6 Everett Point","120-148-1414",2,"kmaulkin0@mail.ru"]
[null,2,"Hestia","Fladgate","Female",30,"1551 Summerview Terrace","919-412-3158",2,"hfladgate1@theglobeandmail.com"]
[null,3,"Kathye","Poplee","Female",32,"3 Northland Junction","173-651-6551",2,"kpoplee2@usatoday.com"]
[null,4,"Alistair","Backson","Male",31,"42 Logan Alley","433-513-7060",1,"abackson3@bloomberg.com"]
[null,5,"Cyrus","Baldcock","Male",28,"62 John Wall Junction","134-226-4399",3,"cbaldcock4@ehow.com"]
[null,6,"Faulkner","Humbles","Bigender",33,"67 Holy Cross Hill","720-266-8980",4,"fhumbles5@hhs.gov"]
[null,7,"Edlin","Benam","Male",33,"0315 Dixon Drive","220-310-7658",3,"ebenam6@redcross.org"]
[null,8,"Ruthy","Garz","Female",33,"405 Killdeer Road","222-817-2501",4,"rgarz7@goo.gl"]
[null,9,"Katha","Forsdike","Female",34,"084 Holy Cross Pass","497-986-5275",3,"kforsdike8@google.nl"]
[null,10,"Ricoriki","Shillaker","Genderqueer",30,"25 Fair Oaks Street","331-898-4207",2,"rshillaker9@exblog.jp"]

{"sheet":"ActiveX Control","index":3,"n_rows":14,"n_cols":11,"rows_kept":14,"cut":false,"hidden":false,"merged":[[1,1,1,4]]}
[null,null,null,null,null,null,null,null,null,null,12]
[null,"Company Profile List"]
[]
[null,"Company Owner","Product","Number of Employee","Yearly Revenue (M)"]
[null,{"$f":"INDEX('Data Table'!$B$5:$E$34,$K$1+ROWS('Data Table'!$B$5:B5),COLUMNS('Data Table'!$B$5:B5))","v":"Kiera"},{"$f":"INDEX('Data Table'!$B$5:$E$34,$K$1+ROWS('Data Table'!$B$5:C5),COLUMNS('Data Table'!$B$5:C5))","v":"Chemicals"},{"$f":"INDEX('Data Table'!$B$5:$E$34,$K$1+ROWS('Data Table'!$B$5:D5),COLUMNS('Data Table'!$B$5:D5))","v":95},{"$f":"INDEX('Data Table'!$B$5:$E$34,$K$1+ROWS('Data Table'!$B$5:E5),COLUMNS('Data Table'!$B$5:E5))","v":12}]
[null,{"$f":"INDEX('Data Table'!$B$5:$E$34,$K$1+ROWS('Data Table'!$B$5:B6),COLUMNS('Data Table'!$B$5:B6))","v":"Jason"},{"$f":"INDEX('Data Table'!$B$5:$E$34,$K$1+ROWS('Data Table'!$B$5:C6),COLUMNS('Data Table'!$B$5:C6))","v":"Chemicals"},{"$f":"INDEX('Data Table'!$B$5:$E$34,$K$1+ROWS('Data Table'!$B$5:D6),COLUMNS('Data Table'!$B$5:D6))","v":500},{"$f":"INDEX('Data Table'!$B$5:$E$34,$K$1+ROWS('Data Table'!$B$5:E6),COLUMNS('Data Table'!$B$5:E6))","v":10}]
[null,{"$f":"INDEX('Data Table'!$B$5:$E$34,$K$1+ROWS('Data Table'!$B$5:B7),COLUMNS('Data Table'!$B$5:B7))","v":"Ashish"},{"$f":"INDEX('Data Table'!$B$5:$E$34,$K$1+ROWS('Data Table'!$B$5:C7),COLUMNS('Data Table'!$B$5:C7))","v":"Car"},{"$f":"INDEX('Data Table'!$B$5:$E$34,$K$1+ROWS('Data Table'!$B$5:D7),COLUMNS('Data Table'!$B$5:D7))","v":250},{"$f":"INDEX('Data Table'!$B$5:$E$34,$K$1+ROWS('Data Table'!$B$5:E7),COLUMNS('Data Table'!$B$5:E7))","v":22}]
[null,{"$f":"INDEX('Data Table'!$B$5:$E$34,$K$1+ROWS('Data Table'!$B$5:B8),COLUMNS('Data Table'!$B$5:B8))","v":"Hiran"},{"$f":"INDEX('Data Table'!$B$5:$E$34,$K$1+ROWS('Data Table'!$B$5:C8),COLUMNS('Data Table'!$B$5:C8))","v":"Car"},{"$f":"INDEX('Data Table'!$B$5:$E$34,$K$1+ROWS('Data Table'!$B$5:D8),COLUMNS('Data Table'!$B$5:D8))","v":300},{"$f":"INDEX('Data Table'!$B$5:$E$34,$K$1+ROWS('Data Table'!$B$5:E8),COLUMNS('Data Table'!$B$5:E8))","v":25}]
[null,{"$f":"INDEX('Data Table'!$B$5:$E$34,$K$1+ROWS('Data Table'!$B$5:B9),COLUMNS('Data Table'!$B$5:B9))","v":"Dushan"},{"$f":"INDEX('Data Table'!$B$5:$E$34,$K$1+ROWS('Data Table'!$B$5:C9),COLUMNS('Data Table'!$B$5:C9))","v":"Car"},{"$f":"INDEX('Data Table'!$B$5:$E$34,$K$1+ROWS('Data Table'!$B$5:D9),COLUMNS('Data Table'!$B$5:D9))","v":110},{"$f":"INDEX('Data Table'!$B$5:$E$34,$K$1+ROWS('Data Table'!$B$5:E9),COLUMNS('Data Table'!$B$5:E9))","v":10}]
[null,{"$f":"INDEX('Data Table'!$B$5:$E$34,$K$1+ROWS('Data Table'!$B$5:B10),COLUMNS('Data Table'!$B$5:B10))","v":"Joy"},{"$f":"INDEX('Data Table'!$B$5:$E$34,$K$1+ROWS('Data Table'!$B$5:C10),COLUMNS('Data Table'!$B$5:C10))","v":"Computer"},{"$f":"INDEX('Data Table'!$B$5:$E$34,$K$1+ROWS('Data Table'!$B$5:D10),COLUMNS('Data Table'!$B$5:D10))","v":350},{"$f":"INDEX('Data Table'!$B$5:$E$34,$K$1+ROWS('Data Table'!$B$5:E10),COLUMNS('Data Table'!$B$5:E10))","v":10}]
[null,{"$f":"INDEX('Data Table'!$B$5:$E$34,$K$1+ROWS('Data Table'!$B$5:B11),COLUMNS('Data Table'!$B$5:B11))","v":"Kane"},{"$f":"INDEX('Data Table'!$B$5:$E$34,$K$1+ROWS('Data Table'!$B$5:C11),COLUMNS('Data Table'!$B$5:C11))","v":"Garments"},{"$f":"INDEX('Data Table'!$B$5:$E$34,$K$1+ROWS('Data Table'!$B$5:D11),COLUMNS('Data Table'!$B$5:D11))","v":700},{"$f":"INDEX('Data Table'!$B$5:$E$34,$K$1+ROWS('Data Table'!$B$5:E11),COLUMNS('Data Table'!$B$5:E11))","v":10}]
[null,{"$f":"INDEX('Data Table'!$B$5:$E$34,$K$1+ROWS('Data Table'!$B$5:B12),COLUMNS('Data Table'!$B$5:B12))","v":"Beer"},{"$f":"INDEX('Data Table'!$B$5:$E$34,$K$1+ROWS('Data Table'!$B$5:C12),COLUMNS('Data Table'!$B$5:C12))","v":"Garments"},{"$f":"INDEX('Data Table'!$B$5:$E$34,$K$1+ROWS('Data Table'!$B$5:D12),COLUMNS('Data Table'!$B$5:D12))","v":650},{"$f":"INDEX('Data Table'!$B$5:$E$34,$K$1+ROWS('Data Table'!$B$5:E12),COLUMNS('Data Table'!$B$5:E12))","v":15}]
[null,{"$f":"INDEX('Data Table'!$B$5:$E$34,$K$1+ROWS('Data Table'!$B$5:B13),COLUMNS('Data Table'!$B$5:B13))","v":"Mike"},{"$f":"INDEX('Data Table'!$B$5:$E$34,$K$1+ROWS('Data Table'!$B$5:C13),COLUMNS('Data Table'!$B$5:C13))","v":"Weapons"},{"$f":"INDEX('Data Table'!$B$5:$E$34,$K$1+ROWS('Data Table'!$B$5:D13),COLUMNS('Data Table'!$B$5:D13))","v":100},{"$f":"INDEX('Data Table'!$B$5:$E$34,$K$1+ROWS('Data Table'!$B$5:E13),COLUMNS('Data Table'!$B$5:E13))","v":10}]
[null,{"$f":"INDEX('Data Table'!$B$5:$E$34,$K$1+ROWS('Data Table'!$B$5:B14),COLUMNS('Data Table'!$B$5:B14))","v":"Gray"},{"$f":"INDEX('Data Table'!$B$5:$E$34,$K$1+ROWS('Data Table'!$B$5:C14),COLUMNS('Data Table'!$B$5:C14))","v":"Weapons"},{"$f":"INDEX('Data Table'!$B$5:$E$34,$K$1+ROWS('Data Table'!$B$5:D14),COLUMNS('Data Table'!$B$5:D14))","v":120},{"$f":"INDEX('Data Table'!$B$5:$E$34,$K$1+ROWS('Data Table'!$B$5:E14),COLUMNS('Data Table'!$B$5:E14))","v":10}]

{"sheet":"Horizontal Scroll Bar","index":4,"n_rows":14,"n_cols":6,"rows_kept":14,"cut":false,"hidden":false,"merged":[[1,1,1,5]]}
[]
[null,"Employee List & Information"]
[]
[null,{"$f":"INDEX('Data Table (for Horizontal)'!$B$4:$J$14,ROWS($B$5:B5),'Data Table (for Horizontal)'!$L$3+COLUMNS($B$5:B5))","v":"Age"},{"$f":"INDEX('Data Table (for Horizontal)'!$B$4:$J$14,ROWS($B$5:C5),'Data Table (for Horizontal)'!$L$3+COLUMNS($B$5:C5))","v":"Address"},{"$f":"INDEX('Data Table (for Horizontal)'!$B$4:$J$14,ROWS($B$5:D5),'Data Table (for Horizontal)'!$L$3+COLUMNS($B$5:D5))","v":"Mobile"},{"$f":"INDEX('Data Table (for Horizontal)'!$B$4:$J$14,ROWS($B$5:E5),'Data Table (for Horizontal)'!$L$3+COLUMNS($B$5:E5))","v":"Working Period (Years)"},{"$f":"INDEX('Data Table (for Horizontal)'!$B$4:$J$14,ROWS($B$5:F5),'Data Table (for Horizontal)'!$L$3+COLUMNS($B$5:F5))","v":"Email"}]
[null,{"$f":"INDEX('Data Table (for Horizontal)'!$B$4:$J$14,ROWS($B$5:B6),'Data Table (for Horizontal)'!$L$3+COLUMNS($B$5:B6))","v":37},{"$f":"INDEX('Data Table (for Horizontal)'!$B$4:$J$14,ROWS($B$5:C6),'Data Table (for Horizontal)'!$L$3+COLUMNS($B$5:C6))","v":"6 Everett Point"},{"$f":"INDEX('Data Table (for Horizontal)'!$B$4:$J$14,ROWS($B$5:D6),'Data Table (for Horizontal)'!$L$3+COLUMNS($B$5:D6))","v":"120-148-1414"},{"$f":"INDEX('Data Table (for Horizontal)'!$B$4:$J$14,ROWS($B$5:E6),'Data Table (for Horizontal)'!$L$3+COLUMNS($B$5:E6))","v":2},{"$f":"INDEX('Data Table (for Horizontal)'!$B$4:$J$14,ROWS($B$5:F6),'Data Table (for Horizontal)'!$L$3+COLUMNS($B$5:F6))","v":"kmaulkin0@mail.ru"}]
[null,{"$f":"INDEX('Data Table (for Horizontal)'!$B$4:$J$14,ROWS($B$5:B7),'Data Table (for Horizontal)'!$L$3+COLUMNS($B$5:B7))","v":30},{"$f":"INDEX('Data Table (for Horizontal)'!$B$4:$J$14,ROWS($B$5:C7),'Data Table (for Horizontal)'!$L$3+COLUMNS($B$5:C7))","v":"1551 Summerview Terrace"},{"$f":"INDEX('Data Table (for Horizontal)'!$B$4:$J$14,ROWS($B$5:D7),'Data Table (for Horizontal)'!$L$3+COLUMNS($B$5:D7))","v":"919-412-3158"},{"$f":"INDEX('Data Table (for Horizontal)'!$B$4:$J$14,ROWS($B$5:E7),'Data Table (for Horizontal)'!$L$3+COLUMNS($B$5:E7))","v":2},{"$f":"INDEX('Data Table (for Horizontal)'!$B$4:$J$14,ROWS($B$5:F7),'Data Table (for Horizontal)'!$L$3+COLUMNS($B$5:F7))","v":"hfladgate1@theglobeandmail.com"}]
[null,{"$f":"INDEX('Data Table (for Horizontal)'!$B$4:$J$14,ROWS($B$5:B8),'Data Table (for Horizontal)'!$L$3+COLUMNS($B$5:B8))","v":32},{"$f":"INDEX('Data Table (for Horizontal)'!$B$4:$J$14,ROWS($B$5:C8),'Data Table (for Horizontal)'!$L$3+COLUMNS($B$5:C8))","v":"3 Northland Junction"},{"$f":"INDEX('Data Table (for Horizontal)'!$B$4:$J$14,ROWS($B$5:D8),'Data Table (for Horizontal)'!$L$3+COLUMNS($B$5:D8))","v":"173-651-6551"},{"$f":"INDEX('Data Table (for Horizontal)'!$B$4:$J$14,ROWS($B$5:E8),'Data Table (for Horizontal)'!$L$3+COLUMNS($B$5:E8))","v":2},{"$f":"INDEX('Data Table (for Horizontal)'!$B$4:$J$14,ROWS($B$5:F8),'Data Table (for Horizontal)'!$L$3+COLUMNS($B$5:F8))","v":"kpoplee2@usatoday.com"}]
[null,{"$f":"INDEX('Data Table (for Horizontal)'!$B$4:$J$14,ROWS($B$5:B9),'Data Table (for Horizontal)'!$L$3+COLUMNS($B$5:B9))","v":31},{"$f":"INDEX('Data Table (for Horizontal)'!$B$4:$J$14,ROWS($B$5:C9),'Data Table (for Horizontal)'!$L$3+COLUMNS($B$5:C9))","v":"42 Logan Alley"},{"$f":"INDEX('Data Table (for Horizontal)'!$B$4:$J$14,ROWS($B$5:D9),'Data Table (for Horizontal)'!$L$3+COLUMNS($B$5:D9))","v":"433-513-7060"},{"$f":"INDEX('Data Table (for Horizontal)'!$B$4:$J$14,ROWS($B$5:E9),'Data Table (for Horizontal)'!$L$3+COLUMNS($B$5:E9))","v":1},{"$f":"INDEX('Data Table (for Horizontal)'!$B$4:$J$14,ROWS($B$5:F9),'Data Table (for Horizontal)'!$L$3+COLUMNS($B$5:F9))","v":"abackson3@bloomberg.com"}]
[null,{"$f":"INDEX('Data Table (for Horizontal)'!$B$4:$J$14,ROWS($B$5:B10),'Data Table (for Horizontal)'!$L$3+COLUMNS($B$5:B10))","v":28},{"$f":"INDEX('Data Table (for Horizontal)'!$B$4:$J$14,ROWS($B$5:C10),'Data Table (for Horizontal)'!$L$3+COLUMNS($B$5:C10))","v":"62 John Wall Junction"},{"$f":"INDEX('Data Table (for Horizontal)'!$B$4:$J$14,ROWS($B$5:D10),'Data Table (for Horizontal)'!$L$3+COLUMNS($B$5:D10))","v":"134-226-4399"},{"$f":"INDEX('Data Table (for Horizontal)'!$B$4:$J$14,ROWS($B$5:E10),'Data Table (for Horizontal)'!$L$3+COLUMNS($B$5:E10))","v":3},{"$f":"INDEX('Data Table (for Horizontal)'!$B$4:$J$14,ROWS($B$5:F10),'Data Table (for Horizontal)'!$L$3+COLUMNS($B$5:F10))","v":"cbaldcock4@ehow.com"}]
[null,{"$f":"INDEX('Data Table (for Horizontal)'!$B$4:$J$14,ROWS($B$5:B11),'Data Table (for Horizontal)'!$L$3+COLUMNS($B$5:B11))","v":33},{"$f":"INDEX('Data Table (for Horizontal)'!$B$4:$J$14,ROWS($B$5:C11),'Data Table (for Horizontal)'!$L$3+COLUMNS($B$5:C11))","v":"67 Holy Cross Hill"},{"$f":"INDEX('Data Table (for Horizontal)'!$B$4:$J$14,ROWS($B$5:D11),'Data Table (for Horizontal)'!$L$3+COLUMNS($B$5:D11))","v":"720-266-8980"},{"$f":"INDEX('Data Table (for Horizontal)'!$B$4:$J$14,ROWS($B$5:E11),'Data Table (for Horizontal)'!$L$3+COLUMNS($B$5:E11))","v":4},{"$f":"INDEX('Data Table (for Horizontal)'!$B$4:$J$14,ROWS($B$5:F11),'Data Table (for Horizontal)'!$L$3+COLUMNS($B$5:F11))","v":"fhumbles5@hhs.gov"}]
[null,{"$f":"INDEX('Data Table (for Horizontal)'!$B$4:$J$14,ROWS($B$5:B12),'Data Table (for Horizontal)'!$L$3+COLUMNS($B$5:B12))","v":33},{"$f":"INDEX('Data Table (for Horizontal)'!$B$4:$J$14,ROWS($B$5:C12),'Data Table (for Horizontal)'!$L$3+COLUMNS($B$5:C12))","v":"0315 Dixon Drive"},{"$f":"INDEX('Data Table (for Horizontal)'!$B$4:$J$14,ROWS($B$5:D12),'Data Table (for Horizontal)'!$L$3+COLUMNS($B$5:D12))","v":"220-310-7658"},{"$f":"INDEX('Data Table (for Horizontal)'!$B$4:$J$14,ROWS($B$5:E12),'Data Table (for Horizontal)'!$L$3+COLUMNS($B$5:E12))","v":3},{"$f":"INDEX('Data Table (for Horizontal)'!$B$4:$J$14,ROWS($B$5:F12),'Data Table (for Horizontal)'!$L$3+COLUMNS($B$5:F12))","v":"ebenam6@redcross.org"}]
[null,{"$f":"INDEX('Data Table (for Horizontal)'!$B$4:$J$14,ROWS($B$5:B13),'Data Table (for Horizontal)'!$L$3+COLUMNS($B$5:B13))","v":33},{"$f":"INDEX('Data Table (for Horizontal)'!$B$4:$J$14,ROWS($B$5:C13),'Data Table (for Horizontal)'!$L$3+COLUMNS($B$5:C13))","v":"405 Killdeer Road"},{"$f":"INDEX('Data Table (for Horizontal)'!$B$4:$J$14,ROWS($B$5:D13),'Data Table (for Horizontal)'!$L$3+COLUMNS($B$5:D13))","v":"222-817-2501"},{"$f":"INDEX('Data Table (for Horizontal)'!$B$4:$J$14,ROWS($B$5:E13),'Data Table (for Horizontal)'!$L$3+COLUMNS($B$5:E13))","v":4},{"$f":"INDEX('Data Table (for Horizontal)'!$B$4:$J$14,ROWS($B$5:F13),'Data Table (for Horizontal)'!$L$3+COLUMNS($B$5:F13))","v":"rgarz7@goo.gl"}]
[null,{"$f":"INDEX('Data Table (for Horizontal)'!$B$4:$J$14,ROWS($B$5:B14),'Data Table (for Horizontal)'!$L$3+COLUMNS($B$5:B14))","v":34},{"$f":"INDEX('Data Table (for Horizontal)'!$B$4:$J$14,ROWS($B$5:C14),'Data Table (for Horizontal)'!$L$3+COLUMNS($B$5:C14))","v":"084 Holy Cross Pass"},{"$f":"INDEX('Data Table (for Horizontal)'!$B$4:$J$14,ROWS($B$5:D14),'Data Table (for Horizontal)'!$L$3+COLUMNS($B$5:D14))","v":"497-986-5275"},{"$f":"INDEX('Data Table (for Horizontal)'!$B$4:$J$14,ROWS($B$5:E14),'Data Table (for Horizontal)'!$L$3+COLUMNS($B$5:E14))","v":3},{"$f":"INDEX('Data Table (for Horizontal)'!$B$4:$J$14,ROWS($B$5:F14),'Data Table (for Horizontal)'!$L$3+COLUMNS($B$5:F14))","v":"kforsdike8@google.nl"}]
[null,{"$f":"INDEX('Data Table (for Horizontal)'!$B$4:$J$14,ROWS($B$5:B15),'Data Table (for Horizontal)'!$L$3+COLUMNS($B$5:B15))","v":30},{"$f":"INDEX('Data Table (for Horizontal)'!$B$4:$J$14,ROWS($B$5:C15),'Data Table (for Horizontal)'!$L$3+COLUMNS($B$5:C15))","v":"25 Fair Oaks Street"},{"$f":"INDEX('Data Table (for Horizontal)'!$B$4:$J$14,ROWS($B$5:D15),'Data Table (for Horizontal)'!$L$3+COLUMNS($B$5:D15))","v":"331-898-4207"},{"$f":"INDEX('Data Table (for Horizontal)'!$B$4:$J$14,ROWS($B$5:E15),'Data Table (for Horizontal)'!$L$3+COLUMNS($B$5:E15))","v":2},{"$f":"INDEX('Data Table (for Horizontal)'!$B$4:$J$14,ROWS($B$5:F15),'Data Table (for Horizontal)'!$L$3+COLUMNS($B$5:F15))","v":"rshillaker9@exblog.jp"}]

{"sheet":"scroll bars","index":5,"n_rows":2,"n_cols":2,"rows_kept":2,"cut":false,"hidden":false,"merged":[[1,1,1,4]]}
[]
[null,"Verticalal Scroll Bar"]

{"sheet":"diy","index":6,"n_rows":34,"n_cols":5,"rows_kept":34,"cut":false,"hidden":false,"merged":[[1,1,1,4]]}
[]
[null,"Do It Yourself"]
[]
[null,"Company Owner","Product","Number of Employee","Yearly Revenue (M)"]
[null,"Laura","Car",100,10]
[null,"James","Car",120,20]
[null,"Jane","Computer",95,12]
[null,"Peter","Garments",500,10]
[null,"Lara","Garments",700,15]
[null,"William","Oil",250,5]
[null,"Nicolas","Gas",300,20]
[null,"Haddin","Car",110,22]
[null,"Peterson","Chemicals",350,25]
[null,"Rob","Weapons",300,10]
[null,"Flintoff","Weapons",100,10]
[null,"Adam","Weapons",120,20]
[null,"Kiera","Chemicals",95,12]
[null,"Jason","Chemicals",500,10]
[null,"Ashish","Car",250,22]
[null,"Hiran","Car",300,25]
[null,"Dushan","Car",110,10]
[null,"Joy","Computer",350,10]
[null,"Kane","Garments",700,10]
[null,"Beer","Garments",650,15]
[null,"Mike","Weapons",100,10]
[null,"Gray","Weapons",120,10]
[null,"Tison","Chemicals",95,20]
[null,"Erikson","Chemicals",500,12]
[null,"Nicles","Car",350,10]
[null,"Brek","Car",700,10]
[null,"Drek","Computer",650,15]
[null,"Laren","Oil",300,20]
[null,"Jovan","Gas",110,22]
[null,"Flintar","Car",350,25]